bitfinex/quotes_ETHUSD_20250703
["timestamp","ask_amount","ask_price","bid_price","bid_amount"]
[1751576538462,4.62516661,2606.4,2606.0,0.22957298]
[1751576538641,3.83685908,2606.3,2606.0,0.22957298]
[1751576539247,4.62523109,2606.4,2606.0,4.06684598]
[1751576539766,4.62523109,2606.4,2606.0,0.22957298]
[1751576540466,4.62523109,2606.4,2606.0,4.0668673]
[1751576540667,0.78844877,2606.4,2606.1,3.83714803]
[1751576540868,0.78844877,2606.4,2606.2,7.876]
[1751576542467,4.62516098,2606.4,2606.2,7.876]
[1751576542790,0.78844877,2606.4,2606.2,7.876]
[1751576542970,4.62516417,2606.4,2606.2,7.876]
[1751576544080,0.78844877,2606.4,2606.2,7.876]
[1751576544374,0.78844877,2606.4,2606.2,11.71300177]
[1751576544866,0.78844877,2606.4,2606.2,7.876]
[1751576545070,4.03777047,2606.5,2606.2,7.876]
[1751576545667,0.2012,2606.5,2606.2,7.876]
[1751576546078,0.01,2606.5,2606.2,11.71289742]
[1751576546297,0.01,2606.5,2606.3,0.1912]
[1751576546681,0.01,2606.5,2606.3,4.02804352]
[1751576547961,0.01,2606.5,2606.3,0.1912]
[1751576548162,0.01,2606.5,2606.3,4.028053]
[1751576548890,0.01,2606.5,2606.3,0.1912]
[1751576549371,0.01,2606.5,2606.4,7.866]
[1751576554173,0.01,2606.5,2606.4,7.858]
[1751576556465,0.01,2606.5,2606.4,11.69470963]
[1751576558502,0.01,2606.5,2606.4,7.858]
[1751576558901,0.01,2606.5,2606.4,11.69470963]
[1751576561827,0.01,2606.5,2606.4,11.68470963]
[1751576562817,0.01,2606.5,2606.4,7.848]
[1751576563018,0.01,2606.5,2606.4,11.68470963]
[1751576563584,0.01,2606.5,2606.4,3.83670963]
[1751576564023,0.25,2607.1,2606.6,3.83632063]
[1751576564229,4.2769654,2607.1,2606.7,7.844]
[1751576564439,4.2769654,2607.1,2606.7,11.68024105]
[1751576565136,0.4412,2607.1,2606.7,11.68024105]
[1751576565931,4.27688055,2607.1,2606.7,11.68024105]
[1751576566226,4.27688055,2607.1,2606.7,11.68024977]
[1751576567123,0.4412,2607.1,2606.7,11.68024977]
[1751576568498,0.4412,2607.1,2606.7,7.844]
[1751576568703,0.25,2607.1,2607.0,0.1912]
[1751576568925,4.08569639,2607.1,2606.3,0.02]
[1751576569234,3.83618134,2606.8,2606.4,0.1912]
[1751576569433,4.02725854,2606.9,2606.4,11.86684852]
[1751576569635,4.02725854,2606.9,2606.6,0.02]
[1751576569836,3.83617756,2606.8,2606.6,0.02]
[1751576570016,3.83626807,2606.7,2606.6,0.02]
[1751576570216,5.42894904,2606.7,2606.6,0.02]
[1751576570420,3.83626807,2606.7,2606.6,0.02]
[1751576578347,12.09063218,2606.7,2606.6,0.02]
[1751576578708,12.85373158,2606.7,2606.6,0.02]
[1751576578909,4.59936747,2606.7,2606.6,0.02]
[1751576579143,3.83626807,2606.7,2606.6,0.02]
[1751576579346,5.50525898,2606.7,2606.6,0.02]
[1751576579538,6.26835838,2606.7,2606.6,0.02]
[1751576579739,6.26825511,2606.7,2606.6,0.02]
[1751576581753,5.50525898,2606.7,2606.6,0.02]
[1751576581954,3.83626807,2606.7,2606.6,0.02]
[1751576616656,0.2012,2606.8,2606.6,0.02]
[1751576616657,4.03734492,2606.8,2606.6,0.02]
[1751576617154,0.01,2606.8,2606.6,0.02]
[1751576618430,0.01,2606.8,2606.7,0.8]
[1751576618848,0.01,2606.8,2606.7,0.9912]
[1751576620351,0.01,2606.8,2606.7,4.82746807]
[1751576620947,0.01,2606.8,2606.7,0.9912]
[1751576621257,0.01,2606.8,2606.7,13.08183218]
[1751576621457,0.01,2606.8,2606.7,23.63183218]
[1751576621845,0.01,2606.8,2606.7,23.91424605]
[1751576624158,0.01,2606.8,2606.7,31.71324605]
[1751576625146,0.01,2606.8,2606.7,23.91424605]
[1751576625470,0.01,2606.8,2606.7,33.62124605]
[1751576626768,0.01,2606.8,2606.7,23.91424605]
[1751576626969,0.01,2606.8,2606.7,33.62224605]
[1751576630745,0.01,2606.8,2606.7,23.91424605]
[1751576630948,0.01,2606.8,2606.7,11.82361387]
[1751576631185,0.01,2606.8,2606.7,21.52761387]
[1751576632156,0.01,2606.8,2606.7,21.2462]
[1751576633258,0.01,2606.8,2606.7,13.4522]
[1751576633458,0.01,2606.8,2606.7,2.9022]
[1751576633459,3.84612091,2606.8,2606.7,2.9022]
[1751576633650,3.84612091,2606.8,2606.7,10.6942]
[1751576633852,3.84612091,2606.8,2606.7,9.8942]
[1751576635285,0.01,2606.8,2606.7,9.8942]
[1751576635668,0.01,2606.8,2606.7,0.1912]
[1751576635984,0.01,2606.8,2606.7,7.9842]
[1751576636185,3.84612091,2606.8,2606.7,7.9842]
[1751576638885,3.84612091,2606.8,2606.7,7.9822]
[1751576639592,3.84612091,2606.8,2606.7,0.1912]
[1751576639774,3.84612091,2606.8,2606.7,7.9812]
[1751576640293,3.83626807,2606.7,2606.6,0.02]
[1751576640466,3.83626807,2606.7,2606.6,8.0012]
[1751576640666,3.83626807,2606.7,2606.6,8.0062]
[1751576642299,0.01,2606.8,2606.6,8.0062]
[1751576642490,0.01,2606.8,2606.7,0.1912]
[1751576642696,0.01,2606.8,2606.7,14.57746807]
[1751576643370,0.01,2606.8,2606.7,0.1912]
[1751576643575,0.01,2606.8,2606.7,7.797]
[1751576643804,3.83626807,2606.7,2606.6,0.02]
[1751576644094,3.83626807,2606.7,2606.6,10.02]
[1751576644305,3.83626807,2606.7,2606.6,17.829]
[1751576645985,0.01,2606.8,2606.6,17.829]
[1751576646187,3.84618386,2606.8,2606.6,17.829]
[1751576646383,3.84618386,2606.8,2606.6,17.831]
[1751576646580,3.83626807,2606.7,2606.6,17.831]
[1751576648722,3.84617892,2606.8,2606.6,17.831]
[1751576649896,3.83626807,2606.7,2606.6,17.831]
[1751576651321,3.84613118,2606.8,2606.6,17.831]
[1751576651994,0.01,2606.8,2606.6,17.831]
[1751576655618,0.01,2606.8,2606.6,21.66740925]
[1751576656687,0.01,2606.8,2606.6,17.831]
[1751576657017,0.01,2606.8,2606.6,21.66740913]
[1751576657217,0.01,2606.8,2606.6,17.831]
[1751576657419,0.01,2606.8,2606.6,21.66740354]
[1751576659299,0.01,2606.8,2606.7,0.0398]
[1751576659924,3.84612091,2606.8,2606.7,0.0398]
[1751576660200,0.79733147,2606.8,2606.7,0.0398]
[1751576660405,0.01,2606.8,2606.7,0.0398]
[1751576661536,3.84612091,2606.8,2606.7,0.0398]
[1751576668843,4.03732091,2606.8,2606.7,0.0398]
[1751576674049,4.03732091,2606.8,2606.6,1e-08]
[1751576674050,13.83626807,2606.7,2606.6,1e-08]
[1751576674211,15.38262973,2606.7,2606.6,1e-08]
[1751576674414,25.09862973,2606.7,2606.6,1e-08]
[1751576674745,24.33960067,2606.7,2606.6,1e-08]
[1751576675053,25.14196454,2606.7,2606.6,1e-08]
[1751576676446,15.42596454,2606.7,2606.6,1e-08]
[1751576676748,25.14196454,2606.7,2606.6,1e-08]
[1751576677523,25.78921076,2606.7,2606.6,1e-08]
[1751576677718,25.78921076,2606.7,2606.3,1e-08]
[1751576677719,3.83670963,2606.4,2606.3,1e-08]
[1751576677927,21.11776978,2606.4,2606.3,1e-08]
[1751576678245,21.92013365,2606.4,2606.3,1e-08]
[1751576679124,32.56737987,2606.4,2606.3,1e-08]
[1751576680131,31.92013365,2606.4,2606.3,1e-08]
[1751576680338,31.92013365,2606.4,2605.3,1e-08]
[1751576680339,3.83818223,2605.4,2605.3,1e-08]
[1751576680621,3.83811131,2605.5,2605.3,1e-08]
[1751576680833,7.821,2605.4,2605.3,1e-08]
[1751576681038,3.83811912,2605.5,2605.3,1e-08]
[1751576681237,7.821,2605.4,2605.3,1e-08]
[1751576682156,11.65918223,2605.4,2605.3,1e-08]
[1751576682654,7.821,2605.4,2605.3,1e-08]
[1751576683031,7.82,2605.4,2605.3,1e-08]
[1751576683554,3.83756257,2605.9,2605.3,3.83828054]
[1751576683753,11.6576745,2605.8,2605.3,3.83828054]
[1751576684053,0.1912,2605.7,2605.3,3.83828054]
[1751576685040,4.02894245,2605.7,2605.3,1e-08]
[1751576685359,4.02894245,2605.7,2605.3,3.83827055]
[1751576685360,0.1912,2605.7,2605.3,3.83827055]
[1751576685575,7.823,2605.6,2605.3,3.83823345]
[1751576686367,7.823,2605.6,2605.3,1e-08]
[1751576686565,0.1912,2605.7,2605.3,1e-08]
[1751576686753,8.0132,2605.7,2605.4,0.7788]
[1751576686959,4.02860867,2606.0,2605.5,4.02921701]
[1751576687265,7.821,2605.9,2605.6,3.83788206]
[1751576687835,0.1912,2606.0,2605.5,0.1912]
[1751576688037,0.1912,2606.0,2605.6,3.83782659]
[1751576689061,0.1912,2606.0,2605.7,3.83772049]
[1751576690041,0.1912,2606.0,2605.8,3.83756296]
[1751576691579,0.1912,2606.0,2605.7,3.83766222]
[1751576691744,0.1912,2606.0,2605.8,3.83757591]
[1751576691945,0.1912,2606.0,2605.7,3.83765632]
[1751576692276,0.1912,2606.0,2605.8,3.83757993]
[1751576692973,0.1912,2606.0,2605.7,3.83766555]
[1751576693161,0.1912,2606.0,2605.8,3.83758487]
[1751576693560,0.1912,2606.0,2605.9,0.8]
[1751576695284,0.8231,2606.5,2605.9,4.63744579]
[1751576695453,0.1912,2606.3,2605.9,5.44946678]
[1751576695656,0.1912,2606.3,2606.0,3.83719293]
[1751576695892,0.1912,2606.3,2606.0,3.83729854]
[1751576696291,0.1912,2606.3,2605.9,5.44946803]
[1751576696663,4.02806481,2606.3,2605.9,5.44946803]
[1751576696913,0.1912,2606.3,2605.9,5.44946803]
[1751576697070,4.02808923,2606.3,2605.9,5.44946803]
[1751576697277,3.83703094,2606.2,2605.9,0.8]
[1751576697676,0.8016,2606.0,2605.9,0.8]
[1751576699276,0.1912,2606.1,2605.9,0.8]
[1751576700268,4.02836353,2606.1,2605.9,0.8]
[1751576701597,0.1912,2606.1,2605.9,4.63742473]
[1751576701777,0.1912,2606.2,2605.9,4.63742473]
[1751576702683,4.02822523,2606.2,2605.9,0.8]
[1751576702884,0.1912,2606.2,2605.9,4.63743546]
[1751576703402,0.1912,2606.2,2605.9,0.8]
[1751576704304,0.1912,2606.2,2605.9,4.63741981]
[1751576704473,0.1912,2606.2,2605.9,0.8]
[1751576704678,0.1912,2606.2,2605.9,4.63741432]
[1751576705207,0.1912,2606.2,2606.0,3.83726722]
[1751576705594,0.1912,2606.2,2606.0,3.83727114]
[1751576707075,0.1912,2606.2,2605.9,4.63737822]
[1751576707276,0.1912,2606.2,2606.0,3.83727645]
[1751576707601,0.1912,2606.2,2605.9,9.05436411]
[1751576707801,0.02,2606.3,2606.1,3.83715129]
[1751576708008,0.02,2606.3,2606.1,4.02835129]
[1751576708298,0.02,2606.3,2606.1,4.02821389]
[1751576708703,0.02,2606.3,2606.2,3.83700406]
[1751576709078,0.02,2606.3,2606.1,4.02826996]
[1751576709606,0.02,2606.3,2606.2,4.61100406]
[1751576712088,0.02,2606.3,2606.1,0.1912]
[1751576712392,0.02,2606.3,2606.2,3.83700406]
[1751576715020,0.02,2606.3,2606.1,4.02826492]
[1751576715185,0.02,2606.3,2606.1,0.1912]
[1751576715385,0.02,2606.3,2606.1,4.02828478]
[1751576715585,0.02,2606.3,2606.2,3.83700406]
[1751576716117,0.02,2606.3,2606.1,4.02826559]
[1751576716332,0.02,2606.3,2606.0,10.0]
[1751576716490,0.02,2606.3,2606.1,3.83714375]
[1751576716689,0.02,2606.3,2606.0,14.02840944]
[1751576717517,0.02,2606.3,2606.0,10.1912]
[1751576717916,0.02,2606.3,2605.9,0.8]
[1751576717917,0.88697787,2606.3,2605.9,0.8]
[1751576718216,4.82426092,2606.2,2605.9,0.8]
[1751576718417,4.63329854,2606.0,2605.9,0.8]
[1751576718636,3.83718029,2606.1,2605.5,0.01]
[1751576718637,3.83788762,2605.6,2605.5,0.01]
[1751576718921,4.0288072,2605.8,2605.5,0.01]
[1751576719085,4.0288072,2605.8,2605.5,3.84800807]
[1751576719086,0.1912,2605.8,2605.5,3.84800807]
[1751576719291,4.02880483,2605.8,2605.5,0.01]
[1751576719494,0.1912,2605.8,2605.5,3.84799602]
[1751576720224,4.02881396,2605.8,2605.5,0.01]
[1751576720395,0.1912,2605.8,2605.5,0.01]
[1751576720799,0.1912,2606.1,2605.7,3.83761644]
[1751576721914,0.1912,2606.1,2605.6,12.28337461]
[1751576721915,4.02835562,2606.1,2605.6,12.28337461]
[1751576722110,0.1912,2606.1,2605.8,3.83747826]
[1751576722322,0.1912,2606.1,2605.7,3.83766558]
[1751576723026,4.02838448,2606.1,2605.6,4.02901093]
[1751576723326,3.83731507,2606.0,2605.6,4.02901093]
[1751576723533,5.76513185,2606.1,2605.6,4.02901093]
[1751576723893,5.76513185,2606.1,2605.7,3.83773342]
[1751576724101,1.92793736,2606.1,2605.8,4.60145643]
[1751576724323,0.1912,2606.1,2605.8,4.60145643]
[1751576724691,0.1912,2606.1,2605.8,4.60148983]
[1751576724896,0.02,2606.3,2605.9,3.83744579]
[1751576725118,0.2112,2606.3,2606.0,3.83716708]
[1751576725529,0.2112,2606.3,2606.1,3.83713465]
[1751576725824,0.2112,2606.3,2605.9,3.83744579]
[1751576726030,0.2112,2606.3,2606.1,3.83708715]
[1751576727618,0.2112,2606.3,2606.0,3.83722935]
[1751576729114,0.2112,2606.3,2605.9,3.83737573]
[1751576731808,0.2112,2606.3,2605.9,3.83738043]
[1751576732015,0.2112,2606.3,2606.0,3.83722881]
[1751576732342,0.8328,2606.2,2606.0,3.83722881]
[1751576732538,0.8328,2606.2,2605.8,0.1912]
[1751576732539,3.83721116,2606.1,2605.8,0.1912]
[1751576732717,4.6698583,2606.2,2605.8,0.1912]
[1751576732920,5.54165603,2606.2,2605.8,0.1912]
[1751576733137,5.54165603,2606.2,2605.8,4.02878395]
[1751576733359,3.83716111,2606.1,2605.8,0.1912]
[1751576733921,5.5416644,2606.2,2605.7,3.83771962]
[1751576734240,5.7328644,2606.2,2605.7,4.02891962]
[1751576734656,3.83716289,2606.1,2605.7,4.02891962]
[1751576734849,3.83716289,2606.1,2605.7,0.1912]
[1751576735157,1.89579773,2606.2,2605.8,3.83751114]
[1751576735661,5.73281084,2606.2,2605.8,3.83751114]
[1751576736166,0.02,2606.3,2606.1,3.83715129]
[1751576736961,0.02,2606.3,2605.9,12.282942]
[1751576737136,0.02,2606.3,2605.9,4.02857789]
[1751576738065,0.02,2606.3,2605.9,4.02859288]
[1751576738234,0.02,2606.3,2606.0,3.83719271]
[1751576741960,0.02,2606.3,2606.1,3.83714501]
[1751576742161,0.02,2606.3,2606.0,3.83721023]
[1751576742763,0.02,2606.3,2606.1,3.83713901]
[1751576742934,0.02,2606.3,2606.0,3.83722148]
[1751576744036,0.02,2606.3,2606.1,3.83713757]
[1751576744367,0.02,2606.3,2605.9,0.1912]
[1751576744368,0.02,2606.3,2606.0,3.83722113]
[1751576747169,0.02,2606.3,2606.1,3.83714074]
[1751576747361,0.02,2606.3,2606.0,3.83721096]
[1751576747560,0.02,2606.3,2606.2,13.45836817]
[1751576747785,0.02,2606.3,2606.2,23.45836817]
[1751576757483,0.02,2606.3,2606.2,23.64956817]
[1751576760285,0.02,2606.3,2606.2,33.34356817]
[1751576766423,0.02,2606.3,2606.2,38.11356816]
[1751576770810,0.02,2606.3,2606.2,28.41956816]
[1751576771013,0.02,2606.3,2606.2,36.20956816]
[1751576771387,0.02,2606.3,2606.2,14.57820406]
[1751576771586,0.02,2606.3,2606.2,30.62256817]
[1751576776248,0.02,2606.3,2606.2,22.83256817]
[1751576776444,0.02,2606.3,2606.2,30.62256817]
[1751576777567,0.02,2606.3,2606.2,22.83256817]
[1751576777730,0.02,2606.3,2606.2,0.1912]
[1751576777920,0.02,2606.3,2605.7,8.60772202]
[1751576777921,0.8124,2606.3,2605.7,8.60772202]
[1751576778122,0.7924,2606.0,2605.8,7.79]
[1751576778325,4.62971464,2606.0,2605.9,10.0]
[1751576778554,0.7924,2606.0,2605.9,10.1912]
[1751576778755,0.7924,2606.0,2605.9,0.1912]
[1751576778955,0.7924,2606.0,2605.9,7.9812]
[1751576779427,0.7924,2606.0,2605.9,8.021]
[1751576779824,1.25534159,2606.0,2605.9,0.231]
[1751576780020,1.25534159,2606.0,2605.9,8.021]
[1751576781063,0.7924,2606.0,2605.9,8.021]
[1751576781638,0.7924,2606.0,2605.9,18.021]
[1751576782330,0.7924,2606.0,2605.9,17.9812]
[1751576782857,4.62969854,2606.0,2605.9,17.9812]
[1751576783233,4.62969854,2606.0,2605.9,10.1912]
[1751576783541,4.62969854,2606.0,2605.9,17.79]
[1751576784253,0.7924,2606.0,2605.9,17.79]
[1751576786771,3.83744579,2605.9,2605.8,0.1912]
[1751576786938,3.83788762,2605.6,2605.5,0.01]
[1751576787128,3.83788762,2605.6,2605.5,7.9912]
[1751576787129,4.60048762,2605.6,2605.5,7.9912]
[1751576787328,4.60048762,2605.6,2605.5,0.2012]
[1751576787552,5.44431151,2605.6,2605.5,7.8]
[1751576787741,5.44431151,2605.6,2605.5,0.01]
[1751576789964,4.64898223,2605.4,2605.3,1e-08]
[1751576791547,3.83894077,2604.9,2604.6,3.02320001]
[1751576791747,4.64974077,2604.9,2604.6,3.02320001]
[1751576792189,0.8108,2604.9,2604.6,6.86255832]
[1751576792391,0.8108,2604.9,2604.6,3.02320001]
[1751576792710,0.8108,2604.9,2604.7,8.25436411]
[1751576792862,4.84047951,2605.2,2604.7,8.44556411]
[1751576793047,3.8389558,2604.9,2604.7,0.1912]
[1751576793381,3.83899211,2604.9,2604.7,0.1912]
[1751576794387,3.83906633,2604.8,2604.7,0.1912]
[1751576794591,3.83899482,2604.9,2604.7,0.1912]
[1751576795180,3.83906633,2604.8,2604.7,0.1912]
[1751576795652,3.838997,2604.9,2604.7,0.1912]
[1751576796887,3.838997,2604.9,2604.4,0.01]
[1751576796888,3.83950854,2604.5,2604.4,0.01]
[1751576797589,4.65630854,2604.5,2604.4,0.01]
[1751576798468,0.8168,2604.5,2604.4,0.01]
[1751576799269,4.65630854,2604.5,2604.4,0.01]
[1751576802288,14.65630854,2604.5,2604.4,0.01]
[1751576802488,0.8313,2604.3,2603.5,0.02]
[1751576802653,3.84105961,2603.5,2603.1,1.924]
[1751576802996,0.192,2603.8,2603.1,0.02]
[1751576802997,4.67272593,2603.2,2603.1,0.02]
[1751576803657,4.67361153,2602.6,2602.5,0.02]
[1751576803857,15.22719088,2602.6,2602.5,0.02]
[1751576804385,15.22719088,2602.6,2602.5,1e-08]
[1751576804610,4.67420215,2602.2,2602.1,1e-08]
[1751576804893,12.47620215,2602.2,2602.1,1e-08]
[1751576805684,30.73056626,2602.2,2602.1,1e-08]
[1751576805894,3.84378843,2601.6,2601.5,0.02]
[1751576806093,12.45618843,2601.6,2601.5,0.02]
[1751576806265,4.64718843,2601.6,2601.5,0.02]
[1751576806465,14.36518843,2601.6,2601.5,0.02]
[1751576810297,14.36518843,2601.6,2601.5,0.00781]
[1751576810497,26.18607279,2601.6,2601.5,0.00781]
[1751576810813,0.7952,2600.9,2600.6,3.84518796]
[1751576810994,0.7952,2600.9,2600.5,0.02]
[1751576810995,8.005,2600.9,2600.5,3.86539705]
[1751576811311,8.005,2600.9,2600.6,3.84513738]
[1751576811473,8.005,2600.9,2600.7,3.84511279]
[1751576811675,8.005,2600.9,2600.6,3.84521205]
[1751576811868,0.192,2600.9,2600.5,0.02]
[1751576812130,7.824,2601.1,2600.9,3.844749]
[1751576812288,8.016,2601.1,2600.8,3.8449086]
[1751576813416,8.016,2601.1,2600.7,3.84505474]
[1751576814114,8.016,2601.1,2600.7,3.84503988]
[1751576814316,8.016,2601.1,2600.8,3.84494362]
[1751576815105,0.192,2601.1,2600.8,3.84494362]
[1751576815301,0.192,2601.1,2600.6,4.03725076]
[1751576815302,0.192,2601.1,2600.9,3.84482284]
[1751576815491,0.192,2601.1,2600.6,4.03723351]
[1751576815699,0.192,2601.1,2600.8,3.84494748]
[1751576816003,0.192,2601.1,2600.8,3.84490074]
[1751576817104,0.192,2601.1,2600.7,0.8224]
[1751576817403,3.84467846,2601.0,2600.6,0.192]
[1751576817597,3.84499862,2600.8,2600.5,0.02]
[1751576817796,3.84517993,2600.7,2600.5,0.02]
[1751576817999,4.61676647,2600.6,2600.5,0.02]
[1751576818171,12.53176647,2600.6,2600.5,0.02]
[1751576820107,14.36005768,2600.6,2600.5,0.02]
[1751576820311,10.61479121,2600.6,2600.5,0.02]
[1751576820496,0.192,2600.6,2600.5,0.02]
[1751576820809,0.192,2601.0,2600.7,0.7808]
[1751576821007,0.192,2601.0,2600.9,3.84482294]
[1751576821181,0.192,2601.3,2600.8,0.2304497]
[1751576821377,0.192,2601.6,2601.4,3.84405568]
[1751576821804,0.192,2601.6,2601.2,4.62508171]
[1751576822016,0.192,2601.6,2601.3,3.84415847]
[1751576822194,0.192,2601.6,2601.3,3.84420597]
[1751576822506,0.192,2601.6,2601.3,3.84416105]
[1751576822707,0.192,2601.6,2601.2,4.62515379]
[1751576823006,0.192,2601.6,2601.3,3.84412525]
[1751576823175,0.192,2601.6,2601.4,3.8440794]
[1751576823381,0.192,2601.6,2601.4,3.84400598]
[1751576823582,0.192,2601.6,2601.3,3.84416638]
[1751576823884,0.192,2601.6,2601.4,3.84407855]
[1751576824212,0.192,2601.6,2601.5,3.84393619]
[1751576824406,7.831,2601.9,2601.5,3.84393619]
[1751576824620,8.023,2601.9,2601.7,3.8436266]
[1751576825008,8.023,2601.9,2601.6,3.84372866]
[1751576825193,0.192,2601.9,2601.5,3.84385789]
[1751576825526,0.192,2601.9,2601.6,3.84368859]
[1751576825808,0.192,2601.9,2601.6,3.84378843]
[1751576826117,0.192,2601.9,2601.5,3.84385596]
[1751576826420,3.84355016,2601.8,2601.4,0.192]
[1751576826628,4.03545378,2601.9,2601.4,4.03608342]
[1751576826913,3.84349814,2601.8,2601.4,0.192]
[1751576827112,11.67349814,2601.8,2601.4,0.192]
[1751576827313,8.5955327,2601.8,2601.4,4.0360813]
[1751576827623,11.67356267,2601.8,2601.4,0.192]
[1751576827820,0.192,2601.9,2601.4,0.192]
[1751576828120,8.07431988,2601.9,2601.7,3.84356583]
[1751576828283,0.24231988,2601.9,2601.7,3.84356583]
[1751576828483,0.24231988,2601.9,2601.6,3.84370901]
[1751576828684,0.24231988,2601.9,2601.4,4.0360298]
[1751576828685,3.84364872,2601.7,2601.4,0.192]
[1751576829013,3.84481491,2601.0,2600.8,0.192]
[1751576829215,3.84481491,2601.0,2600.6,0.192]
[1751576829216,7.831,2601.0,2600.6,0.192]
[1751576829428,0.192,2601.1,2600.6,4.03718105]
[1751576829825,0.192,2601.1,2600.7,3.84509026]
[1751576829986,11.68638099,2601.2,2600.8,3.84494011]
[1751576830186,11.68638099,2601.2,2600.8,0.192]
[1751576830187,3.8445286,2601.1,2600.8,0.192]
[1751576830392,3.84473524,2601.0,2600.8,0.192]
[1751576830622,3.84460794,2601.1,2600.8,0.192]
[1751576831139,3.8438024,2601.6,2601.0,13.84464068]
[1751576831296,0.35759105,2601.5,2601.1,3.88289209]
[1751576831686,4.0358024,2601.6,2601.1,3.88289209]
[1751576831887,13.60955889,2601.8,2601.3,3.84420052]
[1751576832084,0.35849098,2601.7,2601.4,3.84399084]
[1751576832294,0.35849098,2601.6,2601.3,0.192]
[1751576832596,3.84366294,2601.7,2601.3,0.23044231]
[1751576832597,0.35849098,2601.5,2601.3,0.23044231]
[1751576832916,0.35849098,2601.6,2601.3,4.07460426]
[1751576833114,0.35849098,2601.5,2601.3,4.07461975]
[1751576833317,0.35849098,2601.4,2601.3,0.23044231]
[1751576833503,0.35849098,2601.4,2601.3,4.07467404]
[1751576833706,0.35849098,2601.4,2601.3,0.23044231]
[1751576834322,4.20257493,2601.4,2601.0,10.0]
[1751576834501,0.82206363,2601.7,2601.2,0.192]
[1751576834502,0.35849098,2601.3,2601.2,0.192]
[1751576834705,4.20272271,2601.3,2601.2,0.192]
[1751576834911,0.35849098,2601.3,2601.2,0.192]
[1751576835319,5.40848362,2601.3,2601.2,0.192]
[1751576835519,5.40848362,2601.3,2600.6,2.6888]
[1751576835520,13.26348362,2601.3,2600.9,0.192]
[1751576835726,4.20288368,2601.2,2600.9,0.192]
[1751576835939,7.855,2601.3,2600.6,0.7738]
[1751576835940,0.35849098,2601.1,2600.6,0.7738]
[1751576836231,3.84489392,2600.9,2600.6,0.192]
[1751576836431,3.84526647,2600.6,2600.5,0.02]
[1751576836631,0.35849098,2600.8,2600.5,0.02]
[1751576836632,3.84520236,2600.7,2600.5,0.02]
[1751576836947,4.20469654,2600.6,2600.5,0.02]
[1751576837105,4.20469776,2600.6,2600.5,0.02]
[1751576837304,0.35943129,2600.6,2600.5,0.02]
[1751576837506,4.20469776,2600.6,2600.5,0.02]
[1751576837807,0.35943129,2600.6,2600.5,0.02]
[1751576838003,4.20469776,2600.6,2600.5,0.02]
[1751576838806,0.35943129,2600.6,2600.5,0.02]
[1751576839007,0.35943129,2600.6,2600.4,0.002]
[1751576839249,0.35943129,2600.5,2600.4,0.002]
[1751576840231,0.35943129,2600.6,2600.4,0.002]
[1751576840447,0.35943129,2600.5,2600.4,0.002]
[1751576840639,0.35943129,2600.6,2600.4,0.002]
[1751576840954,0.35943129,2600.5,2600.4,0.002]
[1751576842814,3.84534487,2600.6,2600.4,0.002]
[1751576843823,3.84541434,2600.5,2600.4,0.002]
[1751576844632,4.20458354,2600.5,2600.4,0.002]
[1751576844847,5.00957132,2600.5,2600.4,0.002]
[1751576846455,12.86057132,2600.5,2600.4,0.002]
[1751576846827,13.63147132,2600.5,2600.4,0.002]
[1751576848749,9.78605698,2600.5,2600.4,0.002]
[1751576848958,12.82648354,2600.5,2600.4,0.002]
[1751576851942,12.82648354,2600.5,2599.4,0.02]
[1751576852138,12.82648354,2600.5,2596.2,0.8251]
[1751576852139,3.84941104,2597.8,2596.2,0.8251]
[1751576852439,4.98368885,2597.8,2597.3,0.20099001]
[1751576852776,0.7761,2597.8,2597.3,0.20099001]
[1751576853083,0.7761,2597.8,2597.3,0.23949153]
[1751576853084,3.84941104,2597.8,2597.3,0.23949153]
[1751576853385,3.84941104,2597.8,2597.3,0.20099001]
[1751576853542,3.88788162,2597.8,2597.3,0.20099001]
[1751576853875,3.85000385,2597.4,2597.3,0.20099001]
[1751576854074,4.24585446,2597.4,2597.3,0.20099001]
[1751576854636,0.35738003,2597.4,2596.9,3.88915224]
[1751576854865,0.35738003,2597.3,2597.1,0.192]
[1751576855041,0.35738003,2597.2,2597.1,0.192]
[1751576855450,0.35738003,2597.2,2597.1,0.16124896]
[1751576855649,0.35738003,2597.2,2596.8,4.65706582]
[1751576855849,0.35738003,2597.1,2596.9,14.08122789]
[1751576856070,0.35738003,2597.0,2596.9,14.04272044]
[1751576856249,0.35738003,2597.0,2596.9,10.192]
[1751576856457,0.35738003,2597.0,2596.9,14.04274511]
[1751576857189,0.00661808,2789.0,2597.0,0.01]
[1751576857190,9.239,2598.5,2597.0,0.01]
[1751576857346,0.3557795,2598.0,2597.4,10.0]
[1751576857542,8.062,2598.2,2598.0,3.8491147]
[1751576857778,1.18075061,2598.1,2597.9,3.84916293]
[1751576857991,0.35545061,2598.0,2597.9,3.84916293]
[1751576858279,0.35541785,2598.0,2597.9,3.84916293]
[1751576858986,8.8893,2598.1,2598.0,3.8491147]
[1751576859482,8.8893,2598.1,2597.8,4.04132838]
[1751576859649,8.8893,2598.1,2597.9,3.84916772]
[1751576859868,0.8253,2598.1,2598.0,3.8491147]
[1751576861394,0.8253,2598.1,2598.0,13.88760584]
[1751576861693,0.8253,2598.1,2598.0,13.8491147]
[1751576862577,8.058,2598.7,2598.4,3.84845267]
[1751576862782,8.058,2598.7,2598.3,3.84860055]
[1751576862983,8.058,2598.7,2598.3,4.04060055]
[1751576863299,0.192,2598.8,2598.4,3.8484955]
[1751576863503,0.192,2598.8,2598.6,3.84819245]
[1751576863670,0.192,2598.8,2598.7,3.84807788]
[1751576863872,8.053,2598.9,2598.7,3.84807788]
[1751576864068,0.192,2599.0,2598.6,3.84815478]